[Event "Late-Titled-Tuesday-Blitz-July-09-2024"]
[Site "Chess.com"]
[Date "2024.07.09"]
[Round "2"]
[White "bancsoo"]
[Black "biostatistician"]
[Result "1-0"]
[WhiteElo "2845"]
[BlackElo "2554"]
[TimeControl "180+1"]
[EndTime "14:18:17 PDT"]
[Termination "bancsoo won by resignation"]

1. d4 {[%clk 0:03:00.9]} 1... Nf6 {[%clk 0:02:59.8]} 2. Nf3 {[%clk 0:03:00.1]}
2... g6 {[%clk 0:03:00]} 3. Nbd2 {[%clk 0:02:59.7]} 3... d5 {[%clk 0:02:58.4]}
4. e3 {[%clk 0:02:59.2]} 4... Bg7 {[%clk 0:02:58.6]} 5. c4 {[%clk 0:02:59.6]}
5... O-O {[%clk 0:02:58.6]} 6. b4 {[%clk 0:02:59.1]} 6... Bf5 {[%clk 0:02:47.8]}
7. Bb2 {[%clk 0:02:56.9]} 7... c6 {[%clk 0:02:44.7]} 8. a4 {[%clk 0:02:54.4]}
8... Nbd7 {[%clk 0:02:44]} 9. Be2 {[%clk 0:02:50.1]} 9... Ne4 {[%clk 0:02:43.8]}
10. O-O {[%clk 0:02:35.5]} 10... Nxd2 {[%clk 0:02:36.3]} 11. Nxd2 {[%clk
0:02:17.5]} 11... e5 {[%clk 0:02:35.9]} 12. cxd5 {[%clk 0:02:15]} 12... cxd5
{[%clk 0:02:12.1]} 13. dxe5 {[%clk 0:02:09.4]} 13... Nxe5 {[%clk 0:02:13]} 14.
Bd4 {[%clk 0:02:08.9]} 14... a6 {[%clk 0:02:02.7]} 15. Qb3 {[%clk 0:02:05.1]}
15... Rc8 {[%clk 0:02:01.5]} 16. Rfc1 {[%clk 0:02:03.5]} 16... Qd7 {[%clk
0:01:59.9]} 17. b5 {[%clk 0:01:54]} 17... axb5 {[%clk 0:01:53.5]} 18. axb5
{[%clk 0:01:39.3]} 18... Be6 {[%clk 0:01:49]} 19. Qb2 {[%clk 0:01:23.4]} 19...
f6 {[%clk 0:01:37.4]} 20. b6 {[%clk 0:01:16.6]} 20... Rxc1+ {[%clk 0:01:36.9]}
21. Rxc1 {[%clk 0:01:16.5]} 21... Rc8 {[%clk 0:01:37.8]} 22. h3 {[%clk
0:01:03.6]} 22... Rxc1+ {[%clk 0:01:36]} 23. Qxc1 {[%clk 0:01:04.5]} 23... Qc6
{[%clk 0:01:36.4]} 24. Qb2 {[%clk 0:01:00]} 24... Kf7 {[%clk 0:01:29.2]} 25. Nb3
{[%clk 0:00:57.2]} 25... Nc4 {[%clk 0:01:26.6]} 26. Qb1 {[%clk 0:00:46.2]} 26...
Qb5 {[%clk 0:01:11.7]} 27. Qa2 {[%clk 0:00:43.2]} 27... Qb4 {[%clk 0:01:05.2]}
28. Qa7 {[%clk 0:00:38.5]} 28... Qxb3 {[%clk 0:00:57.3]} 29. Qxb7+ {[%clk
0:00:38.6]} 29... Kg8 {[%clk 0:00:53.6]} 30. Qc6 {[%clk 0:00:38.1]} 30... Bf7
{[%clk 0:00:19.2]} 31. b7 {[%clk 0:00:34.5]} 31... Bf8 {[%clk 0:00:19.6]} 32.
Qxf6 {[%clk 0:00:22.2]} 32... Qb1+ {[%clk 0:00:14]} 33. Kh2 {[%clk 0:00:20.8]}
33... Bd6+ {[%clk 0:00:14.1]} 34. g3 {[%clk 0:00:12.4]} 34... Kf8 {[%clk
0:00:15]} 35. Bxc4 {[%clk 0:00:11.5]} 35... Bxg3+ {[%clk 0:00:11.6]} 36. Kxg3
{[%clk 0:00:07.9]} 36... Qg1+ {[%clk 0:00:10.7]} 37. Kh4 {[%clk 0:00:08.2]}
37... g5+ {[%clk 0:00:08.5]} 38. Qxg5 {[%clk 0:00:07.7]} 38... Qxf2+ {[%clk
0:00:09]} 39. Qg3 {[%clk 0:00:07]} 1-0

[Event "Late-Titled-Tuesday-Blitz-July-09-2024"]
[Site "Chess.com"]
[Date "2024.07.09"]
[Round "2"]
[White "alreadybroken23"]
[Black "EternalNight8"]
[Result "1-0"]
[WhiteElo "2661"]
[BlackElo "2383"]
[TimeControl "180+1"]
[EndTime "14:18:20 PDT"]
[Termination "alreadybroken23 won on time"]

1. e4 {[%clk 0:03:00.9]} 1... c5 {[%clk 0:02:59.5]} 2. Nf3 {[%clk 0:03:00.6]}
2... d6 {[%clk 0:02:58.5]} 3. d4 {[%clk 0:03:00.9]} 3... cxd4 {[%clk 0:02:59.4]}
4. Nxd4 {[%clk 0:03:00.8]} 4... Nf6 {[%clk 0:02:59.5]} 5. Nc3 {[%clk 0:03:01.1]}
5... Nc6 {[%clk 0:03:00]} 6. Bg5 {[%clk 0:03:00.2]} 6... Bd7 {[%clk 0:02:59.7]}
7. Qd2 {[%clk 0:03:00]} 7... Rc8 {[%clk 0:03:00]} 8. O-O-O {[%clk 0:02:59.9]}
8... Nxd4 {[%clk 0:03:00.4]} 9. Qxd4 {[%clk 0:03:00.8]} 9... Qa5 {[%clk
0:03:01]} 10. Bxf6 {[%clk 0:03:00.2]} 10... gxf6 {[%clk 0:03:00.9]} 11. Kb1
{[%clk 0:02:55.3]} 11... Qc5 {[%clk 0:03:00.5]} 12. Qxc5 {[%clk 0:02:51]} 12...
Rxc5 {[%clk 0:03:01]} 13. f3 {[%clk 0:02:51.9]} 13... Bg7 {[%clk 0:02:53.1]} 14.
Nd5 {[%clk 0:02:45.7]} 14... e6 {[%clk 0:02:47.5]} 15. Ne3 {[%clk 0:02:44.1]}
15... Ke7 {[%clk 0:02:45.6]} 16. Bd3 {[%clk 0:02:35.9]} 16... Rhc8 {[%clk
0:02:45]} 17. c3 {[%clk 0:02:33.1]} 17... a5 {[%clk 0:02:33.1]} 18. Rhe1 {[%clk
0:02:31.2]} 18... a4 {[%clk 0:02:30.9]} 19. a3 {[%clk 0:02:30.1]} 19... Bb5
{[%clk 0:02:18]} 20. Ka2 {[%clk 0:02:27.7]} 20... h5 {[%clk 0:01:49.4]} 21. Re2
{[%clk 0:02:22.2]} 21... Bxd3 {[%clk 0:01:36.8]} 22. Rxd3 {[%clk 0:02:23.1]}
22... Bh6 {[%clk 0:01:37.1]} 23. Nc2 {[%clk 0:02:19.6]} 23... h4 {[%clk
0:01:34.7]} 24. h3 {[%clk 0:02:18.8]} 24... Rg8 {[%clk 0:01:32.5]} 25. Rd4
{[%clk 0:02:11.7]} 25... b5 {[%clk 0:01:31.7]} 26. Rb4 {[%clk 0:02:09.6]} 26...
e5 {[%clk 0:01:13.1]} 27. Ne1 {[%clk 0:02:06.2]} 27... Rb8 {[%clk 0:01:02.6]}
28. Nd3 {[%clk 0:02:05.2]} 28... Rcc8 {[%clk 0:01:02.9]} 29. Rf2 {[%clk
0:02:03]} 29... Rg8 {[%clk 0:01:01.7]} 30. f4 {[%clk 0:01:51.7]} 30... exf4
{[%clk 0:00:58.6]} 31. c4 {[%clk 0:01:44.9]} 31... Rg3 {[%clk 0:00:42.4]} 32.
Nxf4 {[%clk 0:01:38.3]} 32... Bxf4 {[%clk 0:00:37.6]} 33. Rxf4 {[%clk
0:01:38.7]} 33... Rxg2 {[%clk 0:00:38.2]} 34. cxb5 {[%clk 0:01:36.5]} 34... Rh8
{[%clk 0:00:34.8]} 35. b6 {[%clk 0:01:33.6]} 35... Rgg8 {[%clk 0:00:24.3]} 36.
Rxa4 {[%clk 0:01:32.4]} 36... Rb8 {[%clk 0:00:24.9]} 37. Rb4 {[%clk 0:01:28.9]}
37... Ke6 {[%clk 0:00:22.7]} 38. a4 {[%clk 0:01:25.2]} 38... Ke5 {[%clk
0:00:22.9]} 39. Rf5+ {[%clk 0:01:25]} 39... Ke6 {[%clk 0:00:21.4]} 40. a5 {[%clk
0:01:24.9]} 40... Kd7 {[%clk 0:00:08.2]} 41. a6 {[%clk 0:01:22.8]} 41... Kc6
{[%clk 0:00:08.2]} 42. b7 {[%clk 0:01:19.3]} 42... Kc7 {[%clk 0:00:06.2]} 43.
Rxf6 {[%clk 0:01:17.8]} 43... Rhf8 {[%clk 0:00:04.9]} 44. Rc4+ {[%clk
0:01:10.7]} 44... Kb6 {[%clk 0:00:04.3]} 45. Rxd6+ {[%clk 0:01:10.8]} 45... Ka7
{[%clk 0:00:03.8]} 46. b4 {[%clk 0:01:11.2]} 46... Rg8 {[%clk 0:00:03]} 47. b5
{[%clk 0:01:11.3]} 47... Rg2+ {[%clk 0:00:02.4]} 48. Kb3 {[%clk 0:01:11.4]}
48... Rg3+ {[%clk 0:00:02.1]} 49. Kb4 {[%clk 0:01:08.7]} 49... Rxh3 {[%clk
0:00:02.7]} 50. Ka5 {[%clk 0:01:07.3]} 50... Ra3+ {[%clk 0:00:03]} 51. Ra4
{[%clk 0:01:07.6]} 51... Rxa4+ {[%clk 0:00:02.7]} 52. Kxa4 {[%clk 0:01:08.5]}
52... h3 {[%clk 0:00:02.7]} 53. Ka5 {[%clk 0:01:08.9]} 53... Rh8 {[%clk
0:00:02.8]} 54. b6+ {[%clk 0:01:09.1]} 54... Kb8 {[%clk 0:00:03.6]} 55. a7+
{[%clk 0:01:04.5]} 55... Kxb7 {[%clk 0:00:02.4]} 56. Rd7+ {[%clk 0:01:04.7]}
56... Kc8 {[%clk 0:00:01.6]} 57. a8=Q+ {[%clk 0:01:04.2]} 57... Kxd7 {[%clk
0:00:01.6]} 58. Qxh8 {[%clk 0:01:05.1]} 1-0

[Event "Late-Titled-Tuesday-Blitz-July-09-2024"]
[Site "Chess.com"]
[Date "2024.07.09"]
[Round "2"]
[White "Veleamater"]
[Black "Maluco_do_Natal_00"]
[Result "1-0"]
[WhiteElo "2432"]
[BlackElo "1986"]
[TimeControl "180+1"]
[EndTime "14:18:20 PDT"]
[Termination "Veleamater won on time"]

1. g3 {[%clk 0:03:00.9]} 1... d5 {[%clk 0:02:59.7]} 2. Bg2 {[%clk 0:03:00.8]}
2... Nf6 {[%clk 0:02:59.9]} 3. d3 {[%clk 0:03:01]} 3... g6 {[%clk 0:02:59.8]} 4.
Nf3 {[%clk 0:03:00.9]} 4... Bg7 {[%clk 0:02:59.8]} 5. O-O {[%clk 0:02:44.6]}
5... O-O {[%clk 0:02:59.4]} 6. h3 {[%clk 0:02:44.5]} 6... c5 {[%clk 0:02:58.5]}
7. Nc3 {[%clk 0:02:45]} 7... Nc6 {[%clk 0:02:53.7]} 8. e4 {[%clk 0:02:45.4]}
8... dxe4 {[%clk 0:02:41.3]} 9. dxe4 {[%clk 0:02:43.5]} 9... e5 {[%clk
0:02:40.3]} 10. Be3 {[%clk 0:02:40.9]} 10... b6 {[%clk 0:02:34.3]} 11. Nd2
{[%clk 0:02:39.6]} 11... Ba6 {[%clk 0:02:25.6]} 12. Re1 {[%clk 0:02:38.1]} 12...
Nd4 {[%clk 0:02:14.5]} 13. a4 {[%clk 0:02:33.6]} 13... Rc8 {[%clk 0:02:02.2]}
14. Kh2 {[%clk 0:02:32.4]} 14... h6 {[%clk 0:02:01.4]} 15. f4 {[%clk 0:02:30]}
15... exf4 {[%clk 0:01:39.5]} 16. gxf4 {[%clk 0:02:29.4]} 16... Nh5 {[%clk
0:01:36]} 17. Nd5 {[%clk 0:02:13.4]} 17... Bb7 {[%clk 0:01:04.5]} 18. Nc3 {[%clk
0:01:42.8]} 18... Qh4 {[%clk 0:00:54.8]} 19. Qg4 {[%clk 0:01:27.2]} 19... Qxg4
{[%clk 0:00:31.3]} 20. hxg4 {[%clk 0:01:27.3]} 20... Nf6 {[%clk 0:00:31.2]} 21.
Bxd4 {[%clk 0:01:24.1]} 21... Nxg4+ {[%clk 0:00:27.2]} 22. Kg3 {[%clk
0:01:21.8]} 22... cxd4 {[%clk 0:00:25.6]} 23. Nb5 {[%clk 0:01:08.1]} 23... Ne3
{[%clk 0:00:23.7]} 24. c3 {[%clk 0:00:59.7]} 24... Nxg2 {[%clk 0:00:22.7]} 25.
Kxg2 {[%clk 0:00:56.9]} 25... dxc3 {[%clk 0:00:22]} 26. bxc3 {[%clk 0:00:55.3]}
26... a6 {[%clk 0:00:18.9]} 27. Nd6 {[%clk 0:00:54.3]} 27... Rc7 {[%clk
0:00:18.2]} 28. Nxb7 {[%clk 0:00:54.4]} 28... Rxb7 {[%clk 0:00:18.2]} 29. e5
{[%clk 0:00:54]} 29... Rd8 {[%clk 0:00:17.3]} 30. Ne4 {[%clk 0:00:52.9]} 30...
Rc7 {[%clk 0:00:15.3]} 31. Re3 {[%clk 0:00:52.4]} 31... Kf8 {[%clk 0:00:14]} 32.
Rb1 {[%clk 0:00:52.3]} 32... Rc6 {[%clk 0:00:12.3]} 33. Kf3 {[%clk 0:00:49.3]}
33... f6 {[%clk 0:00:10.8]} 34. exf6 {[%clk 0:00:40.9]} 34... Bxf6 {[%clk
0:00:10]} 35. a5 {[%clk 0:00:38.1]} 35... b5 {[%clk 0:00:09.5]} 36. Rg1 {[%clk
0:00:34.3]} 36... Kg7 {[%clk 0:00:07.4]} 37. f5 {[%clk 0:00:33.8]} 37... g5
{[%clk 0:00:06.1]} 38. Rge1 {[%clk 0:00:27.4]} 38... Rd7 {[%clk 0:00:04.3]} 39.
Nxf6 {[%clk 0:00:27.4]} 39... Rxf6 {[%clk 0:00:04.1]} 40. Kg4 {[%clk 0:00:25.4]}
40... Rc7 {[%clk 0:00:02.3]} 41. Re7+ {[%clk 0:00:25.2]} 41... Rf7 {[%clk
0:00:02.4]} 42. Rxf7+ {[%clk 0:00:22.5]} 42... Kxf7 {[%clk 0:00:02.2]} 43. Re6
{[%clk 0:00:22.2]} 1-0

[Event "Late-Titled-Tuesday-Blitz-July-09-2024"]
[Site "Chess.com"]
[Date "2024.07.09"]
[Round "2"]
[White "Kirill_Klukin"]
[Black "Emp3rador"]
[Result "1-0"]
[WhiteElo "2937"]
[BlackElo "2613"]
[TimeControl "180+1"]
[EndTime "14:18:21 PDT"]
[Termination "Kirill_Klukin won by resignation"]

1. d4 {[%clk 0:03:00.9]} 1... d5 {[%clk 0:03:00.1]} 2. c4 {[%clk 0:03:00.8]}
2... c6 {[%clk 0:03:00.8]} 3. Nf3 {[%clk 0:03:00.7]} 3... Nf6 {[%clk 0:03:01.4]}
4. Nc3 {[%clk 0:03:01]} 4... dxc4 {[%clk 0:03:00.6]} 5. e3 {[%clk 0:03:00.8]}
5... b5 {[%clk 0:02:59.7]} 6. a4 {[%clk 0:03:01.3]} 6... b4 {[%clk 0:02:59.7]}
7. Na2 {[%clk 0:03:01.9]} 7... a5 {[%clk 0:03:00]} 8. Bxc4 {[%clk 0:03:02.4]}
8... Ba6 {[%clk 0:03:00.5]} 9. Qe2 {[%clk 0:02:46.9]} 9... e6 {[%clk 0:02:59.1]}
10. O-O {[%clk 0:02:45.9]} 10... Qb6 {[%clk 0:02:41.1]} 11. Bd2 {[%clk 0:02:44]}
11... Be7 {[%clk 0:02:40.9]} 12. Nc1 {[%clk 0:02:43.6]} 12... Nbd7 {[%clk
0:02:33.7]} 13. Nb3 {[%clk 0:02:43.3]} 13... c5 {[%clk 0:02:30.8]} 14. Rac1
{[%clk 0:02:42.2]} 14... cxd4 {[%clk 0:02:26.8]} 15. Nfxd4 {[%clk 0:02:42.4]}
15... O-O {[%clk 0:02:23.9]} 16. Bb5 {[%clk 0:02:25.5]} 16... Nc5 {[%clk
0:02:13]} 17. Nxc5 {[%clk 0:02:07.8]} 17... Bxc5 {[%clk 0:02:08.9]} 18. Rxc5
{[%clk 0:01:56]} 18... Qxc5 {[%clk 0:02:09]} 19. Bxa6 {[%clk 0:01:56.4]} 19...
e5 {[%clk 0:01:38.7]} 20. Nf5 {[%clk 0:01:47.3]} 20... g6 {[%clk 0:01:36.6]} 21.
Ng3 {[%clk 0:01:23.3]} 21... Rfd8 {[%clk 0:01:34.4]} 22. e4 {[%clk 0:01:19.8]}
22... Rxd2 {[%clk 0:01:13.9]} 23. Qxd2 {[%clk 0:01:17.4]} 23... Rxa6 {[%clk
0:01:14.5]} 24. Rd1 {[%clk 0:01:13.9]} 24... Rc6 {[%clk 0:00:46.9]} 25. Qg5
{[%clk 0:01:10.5]} 25... Rd6 {[%clk 0:00:41]} 26. Rc1 {[%clk 0:00:57.5]} 26...
Qb6 {[%clk 0:00:15.4]} 27. h3 {[%clk 0:00:30]} 27... Rc6 {[%clk 0:00:07.4]} 28.
Rxc6 {[%clk 0:00:24.9]} 28... Qxc6 {[%clk 0:00:08.3]} 29. Qxe5 {[%clk
0:00:25.5]} 29... Nd7 {[%clk 0:00:08.6]} 30. Qd4 {[%clk 0:00:22.8]} 30... Qxa4
{[%clk 0:00:08.4]} 31. h4 {[%clk 0:00:14.9]} 31... Qc6 {[%clk 0:00:08.5]} 32. h5
{[%clk 0:00:15.2]} 32... Nf6 {[%clk 0:00:07.4]} 33. h6 {[%clk 0:00:11.8]} 33...
Qe8 {[%clk 0:00:07.3]} 34. e5 {[%clk 0:00:11.1]} 34... Nd7 {[%clk 0:00:05.7]}
35. f4 {[%clk 0:00:11.1]} 35... Nf8 {[%clk 0:00:05.7]} 36. Ne4 {[%clk
0:00:11.2]} 36... Qe6 {[%clk 0:00:03.5]} 37. Qd8 {[%clk 0:00:11.4]} 37... f5
{[%clk 0:00:03.1]} 38. Qc7 {[%clk 0:00:05.6]} 38... Qd7 {[%clk 0:00:01.9]} 39.
Nf6+ {[%clk 0:00:06.1]} 39... Kf7 {[%clk 0:00:02.4]} 40. Nxd7 {[%clk 0:00:07]}
1-0

[Event "Late-Titled-Tuesday-Blitz-July-09-2024"]
[Site "Chess.com"]
[Date "2024.07.09"]
[Round "2"]
[White "BogdanDeac"]
[Black "pooh2012"]
[Result "0-1"]
[WhiteElo "2958"]
[BlackElo "2641"]
[TimeControl "180+1"]
[EndTime "14:18:23 PDT"]
[Termination "pooh2012 won on time"]

1. e4 {[%clk 0:03:00.9]} 1... c6 {[%clk 0:02:58.1]} 2. Nf3 {[%clk 0:02:56.2]}
2... d5 {[%clk 0:02:58.5]} 3. Nc3 {[%clk 0:02:56.6]} 3... Bg4 {[%clk 0:02:58.1]}
4. h3 {[%clk 0:02:54.6]} 4... Bxf3 {[%clk 0:02:58]} 5. Qxf3 {[%clk 0:02:55.5]}
5... e6 {[%clk 0:02:57.9]} 6. d4 {[%clk 0:02:54.7]} 6... Nd7 {[%clk 0:02:55.5]}
7. Bd3 {[%clk 0:02:53]} 7... dxe4 {[%clk 0:02:47.4]} 8. Qxe4 {[%clk 0:02:48.1]}
8... Ngf6 {[%clk 0:02:46.1]} 9. Qf3 {[%clk 0:02:47]} 9... Be7 {[%clk 0:02:37.1]}
10. O-O {[%clk 0:02:46.3]} 10... e5 {[%clk 0:02:18.6]} 11. Be3 {[%clk
0:02:42.9]} 11... O-O {[%clk 0:02:11.8]} 12. d5 {[%clk 0:02:29.6]} 12... cxd5
{[%clk 0:01:58.3]} 13. Nxd5 {[%clk 0:02:28.9]} 13... Nxd5 {[%clk 0:01:57.6]} 14.
Qxd5 {[%clk 0:02:28.4]} 14... Qc7 {[%clk 0:01:56.9]} 15. Rad1 {[%clk 0:02:18.8]}
15... Nf6 {[%clk 0:01:45.5]} 16. Qc4 {[%clk 0:02:17.8]} 16... Qxc4 {[%clk
0:01:28.3]} 17. Bxc4 {[%clk 0:02:17.4]} 17... a6 {[%clk 0:01:26.7]} 18. Rfe1
{[%clk 0:02:16.2]} 18... Rac8 {[%clk 0:01:23.8]} 19. Bb3 {[%clk 0:02:13]} 19...
Bc5 {[%clk 0:00:57.3]} 20. g4 {[%clk 0:02:02.5]} 20... h6 {[%clk 0:00:52.4]} 21.
Kg2 {[%clk 0:01:52]} 21... Rfe8 {[%clk 0:00:49.6]} 22. Kg3 {[%clk 0:01:51.6]}
22... Ne4+ {[%clk 0:00:44.8]} 23. Kg2 {[%clk 0:01:50.5]} 23... Nf6 {[%clk
0:00:44.9]} 24. c3 {[%clk 0:01:47.1]} 24... Rc7 {[%clk 0:00:25.8]} 25. Bxc5
{[%clk 0:01:43]} 25... Rxc5 {[%clk 0:00:25.6]} 26. Rd6 {[%clk 0:01:43.4]} 26...
Kf8 {[%clk 0:00:23.5]} 27. Kg3 {[%clk 0:01:35.4]} 27... e4 {[%clk 0:00:22.3]}
28. Bc2 {[%clk 0:01:27.8]} 28... Rb5 {[%clk 0:00:21.5]} 29. b3 {[%clk
0:01:19.6]} 29... Rc5 {[%clk 0:00:21.6]} 30. c4 {[%clk 0:01:19.5]} 30... b5
{[%clk 0:00:21.8]} 31. Rxa6 {[%clk 0:01:18.2]} 31... bxc4 {[%clk 0:00:22.2]} 32.
b4 {[%clk 0:01:17.8]} 32... Rd5 {[%clk 0:00:19.9]} 33. Rc6 {[%clk 0:01:17.2]}
33... Rd4 {[%clk 0:00:18]} 34. b5 {[%clk 0:00:45]} 34... Nd5 {[%clk 0:00:17]}
35. a3 {[%clk 0:00:30.7]} 35... e3 {[%clk 0:00:12.8]} 36. b6 {[%clk 0:00:08.7]}
36... Rd2 {[%clk 0:00:09.5]} 37. Bf5 {[%clk 0:00:02.9]} 37... exf2 {[%clk
0:00:07.3]} 38. Rf1 {[%clk 0:00:03.2]} 38... Rb2 {[%clk 0:00:04.7]} 39. Rxf2
{[%clk 0:00:01.3]} 39... Rxb6 {[%clk 0:00:04]} 40. Rxc4 {[%clk 0:00:01.2]} 40...
Ne3 {[%clk 0:00:04]} 0-1

[Event "Late-Titled-Tuesday-Blitz-July-09-2024"]
[Site "Chess.com"]
[Date "2024.07.09"]
[Round "2"]
[White "Statham_01"]
[Black "FabianoCaruana"]
[Result "0-1"]
[WhiteElo "2665"]
[BlackElo "3183"]
[TimeControl "180+1"]
[EndTime "14:18:24 PDT"]
[Termination "FabianoCaruana won by resignation"]

1. e4 {[%clk 0:02:58.4]} 1... c5 {[%clk 0:02:59.4]} 2. a3 {[%clk 0:02:59]} 2...
e6 {[%clk 0:02:58.3]} 3. b4 {[%clk 0:02:57.9]} 3... cxb4 {[%clk 0:02:58.6]} 4.
axb4 {[%clk 0:02:58.8]} 4... Bxb4 {[%clk 0:02:59]} 5. Bb2 {[%clk 0:02:59.5]}
5... Nf6 {[%clk 0:02:41.3]} 6. e5 {[%clk 0:02:59.8]} 6... Nd5 {[%clk 0:02:41.5]}
7. c4 {[%clk 0:03:00.5]} 7... Ne7 {[%clk 0:02:36.5]} 8. Qg4 {[%clk 0:03:00.3]}
8... Nf5 {[%clk 0:02:27.7]} 9. Bd3 {[%clk 0:02:58.4]} 9... h5 {[%clk 0:02:25.5]}
10. Qf3 {[%clk 0:02:45.7]} 10... g6 {[%clk 0:02:25.4]} 11. Ne2 {[%clk
0:02:43.6]} 11... Nc6 {[%clk 0:02:23.4]} 12. Nbc3 {[%clk 0:02:24.8]} 12... Nxe5
{[%clk 0:02:16.5]} 13. Qe4 {[%clk 0:02:21.5]} 13... d6 {[%clk 0:02:06.3]} 14. f4
{[%clk 0:02:06.6]} 14... Nd7 {[%clk 0:01:26.5]} 15. Na2 {[%clk 0:01:16.7]} 15...
Nf6 {[%clk 0:01:25.3]} 16. Qf3 {[%clk 0:01:08.5]} 16... Bc5 {[%clk 0:01:24]} 17.
Bxf5 {[%clk 0:01:05.9]} 17... gxf5 {[%clk 0:01:24.9]} 18. d4 {[%clk 0:01:03.8]}
18... Bb6 {[%clk 0:01:24.9]} 19. O-O {[%clk 0:00:59.6]} 19... Ne4 {[%clk
0:01:16.6]} 20. c5 {[%clk 0:00:43]} 20... Bc7 {[%clk 0:01:06.3]} 21. d5 {[%clk
0:00:37]} 21... Rh6 {[%clk 0:01:04.8]} 22. Nac3 {[%clk 0:00:34.3]} 22... Nd2
{[%clk 0:00:57.3]} 23. Qd3 {[%clk 0:00:21.4]} 23... Nxf1 {[%clk 0:00:56.2]} 24.
Rxf1 {[%clk 0:00:15.2]} 24... dxc5 {[%clk 0:00:56.4]} 25. Nb5 {[%clk 0:00:11.5]}
25... Bb6 {[%clk 0:00:53.2]} 26. Qg3 {[%clk 0:00:04.7]} 26... Rg6 {[%clk
0:00:52.6]} 27. Qh3 {[%clk 0:00:03.8]} 27... Qxd5 {[%clk 0:00:51.1]} 28. Nec3
{[%clk 0:00:04.3]} 28... Qc6 {[%clk 0:00:47.7]} 29. Rd1 {[%clk 0:00:04.5]} 29...
Bd7 {[%clk 0:00:36.2]} 30. Rd6 {[%clk 0:00:04.5]} 30... c4+ {[%clk 0:00:32.1]}
31. Kh1 {[%clk 0:00:04.1]} 31... Qc5 {[%clk 0:00:32.6]} 32. Rd1 {[%clk 0:00:04]}
32... Bc6 {[%clk 0:00:30.1]} 33. Ba3 {[%clk 0:00:03.3]} 33... Rxg2 {[%clk
0:00:17.6]} 34. Qxg2 {[%clk 0:00:02.8]} 34... Bxg2+ {[%clk 0:00:17.1]} 35. Kxg2
{[%clk 0:00:03.7]} 35... Qc6+ {[%clk 0:00:17.5]} 36. Kg3 {[%clk 0:00:02.4]}
36... Bc5 {[%clk 0:00:16]} 37. Bxc5 {[%clk 0:00:02.1]} 37... Qxc5 {[%clk
0:00:16.9]} 38. Nd6+ {[%clk 0:00:02.8]} 38... Kf8 {[%clk 0:00:17.4]} 39. Ncb5
{[%clk 0:00:01.7]} 39... Qe3+ {[%clk 0:00:16.9]} 40. Kg2 {[%clk 0:00:02.4]}
40... Qe2+ {[%clk 0:00:17.1]} 0-1

[Event "Late-Titled-Tuesday-Blitz-July-09-2024"]
[Site "Chess.com"]
[Date "2024.07.09"]
[Round "2"]
[White "Defenstrator"]
[Black "dawid498"]
[Result "0-1"]
[WhiteElo "2384"]
[BlackElo "2669"]
[TimeControl "180+1"]
[EndTime "14:18:24 PDT"]
[Termination "dawid498 won by resignation"]

1. e4 {[%clk 0:03:00.5]} 1... g6 {[%clk 0:02:58.7]} 2. Nf3 {[%clk 0:03:01]} 2...
Bg7 {[%clk 0:02:58.5]} 3. Bc4 {[%clk 0:03:01.7]} 3... e6 {[%clk 0:02:55.3]} 4.
Nc3 {[%clk 0:02:54.8]} 4... a6 {[%clk 0:02:54.7]} 5. d4 {[%clk 0:02:55]} 5... b5
{[%clk 0:02:54.8]} 6. Bb3 {[%clk 0:02:55.8]} 6... Bb7 {[%clk 0:02:54.9]} 7. Qe2
{[%clk 0:02:55.6]} 7... Ne7 {[%clk 0:02:55]} 8. h4 {[%clk 0:02:54.9]} 8... h6
{[%clk 0:02:53.8]} 9. Bf4 {[%clk 0:02:53.9]} 9... d6 {[%clk 0:02:53.9]} 10.
O-O-O {[%clk 0:02:53.8]} 10... Nd7 {[%clk 0:02:41.3]} 11. Kb1 {[%clk 0:02:48.1]}
11... Nf6 {[%clk 0:02:12.2]} 12. Rhe1 {[%clk 0:02:44.6]} 12... b4 {[%clk
0:02:04.5]} 13. Na4 {[%clk 0:02:43.3]} 13... Bxe4 {[%clk 0:01:54.9]} 14. d5
{[%clk 0:02:32.2]} 14... Bxd5 {[%clk 0:01:43.4]} 15. Nd4 {[%clk 0:02:21.5]}
15... O-O {[%clk 0:01:14]} 16. Qd2 {[%clk 0:01:57.4]} 16... Bxb3 {[%clk
0:01:11]} 17. Nxb3 {[%clk 0:01:49.7]} 17... Qe8 {[%clk 0:00:45.1]} 18. Qxb4
{[%clk 0:01:45.6]} 18... Ned5 {[%clk 0:00:39.5]} 19. Qc4 {[%clk 0:01:44.4]}
19... Qb5 {[%clk 0:00:37.2]} 20. Qd4 {[%clk 0:01:20.3]} 20... Nxf4 {[%clk
0:00:22.9]} 21. Qxf4 {[%clk 0:01:19.3]} 21... e5 {[%clk 0:00:23.5]} 22. Qf3
{[%clk 0:01:02.4]} 22... Qxa4 {[%clk 0:00:23.3]} 23. g4 {[%clk 0:01:03.2]} 23...
Qxg4 {[%clk 0:00:23.1]} 24. Qc3 {[%clk 0:01:02.3]} 24... c5 {[%clk 0:00:12.2]}
25. Rg1 {[%clk 0:01:01.6]} 25... Qe6 {[%clk 0:00:11.7]} 26. Nd2 {[%clk
0:00:57.6]} 26... d5 {[%clk 0:00:10.2]} 27. Qxc5 {[%clk 0:00:56.5]} 27... Ne4
{[%clk 0:00:10.3]} 28. Nxe4 {[%clk 0:00:56]} 28... dxe4 {[%clk 0:00:11.2]} 29.
Rd6 {[%clk 0:00:56.6]} 29... Qf5 {[%clk 0:00:11.3]} 30. Qe3 {[%clk 0:00:53.1]}
30... Kh7 {[%clk 0:00:08.6]} 31. h5 {[%clk 0:00:50.8]} 31... g5 {[%clk
0:00:08.6]} 32. Rc6 {[%clk 0:00:45.2]} 32... Qf4 {[%clk 0:00:08.1]} 33. Qe2
{[%clk 0:00:45.1]} 33... Rfd8 {[%clk 0:00:06.3]} 34. Rg4 {[%clk 0:00:32.7]}
34... Qf3 {[%clk 0:00:06.4]} 35. Qxf3 {[%clk 0:00:22.3]} 35... exf3 {[%clk
0:00:07.3]} 36. Kc1 {[%clk 0:00:23]} 36... f5 {[%clk 0:00:07.6]} 37. Rb4 {[%clk
0:00:22.8]} 37... Rd7 {[%clk 0:00:07.6]} 38. Rbb6 {[%clk 0:00:23.1]} 38... e4
{[%clk 0:00:07.6]} 39. Re6 {[%clk 0:00:20.1]} 39... Rad8 {[%clk 0:00:05.8]} 40.
c3 {[%clk 0:00:20.8]} 40... a5 {[%clk 0:00:05.5]} 41. b4 {[%clk 0:00:19.8]}
41... axb4 {[%clk 0:00:04.9]} 42. cxb4 {[%clk 0:00:20.7]} 42... g4 {[%clk
0:00:05.8]} 43. a4 {[%clk 0:00:18]} 43... g3 {[%clk 0:00:06.2]} 44. fxg3 {[%clk
0:00:18.7]} 44... f2 {[%clk 0:00:07.1]} 0-1